[Event "Titled Tuesday Blitz May 4 2021"]
[White "Shyaamnikhil P"]
[Black "Kilpatrick, Callum"]
[WhiteFideId "5024218"]
[BlackFideId "414425"]
[WhiteElo "2300"]
[BlackElo "2486"]
[Result "1-0"]
[Round "02"]
[TimeControl "180+1"]
[Date "2021.05.04"]
[WhiteClock "0:00:21"]
[BlackClock "0:00:01"]

1. e3 {[%clk 0:03:00]}  Nf6 {[%clk 0:02:59]} 2. g4 {[%clk 0:03:00]}  d5 {[%clk 0:02:56]} 3. g5 {[%clk 0:03:00]}  Nfd7 {[%clk 0:02:55]} 4. Bg2 {[%clk 0:02:57]}  e6 {[%clk 0:02:55]} 5. h4 {[%clk 0:02:56]}  Bd6 {[%clk 0:02:54]} 6. b3 {[%clk 0:02:53]}  O-O {[%clk 0:02:40]} 7. Bb2 {[%clk 0:02:52]}  c5 {[%clk 0:02:41]} 8. f4 {[%clk 0:02:52]}  Nc6 {[%clk 0:02:34]} 9. Nf3 {[%clk 0:02:51]}  e5 {[%clk 0:02:35]} 10. fxe5 {[%clk 0:02:43]}  Ncxe5 {[%clk 0:02:34]} 11. O-O {[%clk 0:02:42]}  Qe7 {[%clk 0:02:25]} 12. Nc3 {[%clk 0:02:40]}  Nb6 {[%clk 0:02:17]} 13. Nb5 {[%clk 0:02:32]}  Bb8 {[%clk 0:02:15]} 14. Nxe5 {[%clk 0:02:28]}  Bxe5 {[%clk 0:02:14]} 15. Bxe5 {[%clk 0:02:28]}  Qxe5 {[%clk 0:02:14]} 16. Qf3 {[%clk 0:02:28]}  d4 {[%clk 0:01:59]} 17. Qf4 {[%clk 0:02:25]}  Qxf4 {[%clk 0:01:47]} 18. Rxf4 {[%clk 0:02:26]}  dxe3 {[%clk 0:01:47]} 19. dxe3 {[%clk 0:02:25]}  a6 {[%clk 0:01:45]} 20. Nc7 {[%clk 0:02:12]}  Rb8 {[%clk 0:01:44]} 21. Raf1 {[%clk 0:02:11]}  Be6 {[%clk 0:01:32]} 22. Nxe6 {[%clk 0:02:09]}  fxe6 {[%clk 0:01:33]} 23. Rxf8+ {[%clk 0:02:09]}  Rxf8 {[%clk 0:01:34]} 24. Rxf8+ {[%clk 0:02:09]}  Kxf8 {[%clk 0:01:35]} 25. Bxb7 {[%clk 0:02:08]}  a5 {[%clk 0:01:34]} 26. Kf2 {[%clk 0:02:08]}  Ke7 {[%clk 0:01:31]} 27. Kf3 {[%clk 0:02:08]}  Kd6 {[%clk 0:01:29]} 28. Kf4 {[%clk 0:02:05]}  Nd7 {[%clk 0:01:24]} 29. Be4 {[%clk 0:02:02]}  h6 {[%clk 0:01:08]} 30. gxh6 {[%clk 0:02:00]}  gxh6 {[%clk 0:01:09]} 31. Bf3 {[%clk 0:01:58]}  Ne5 {[%clk 0:01:03]} 32. Be4 {[%clk 0:01:56]}  Nd7 {[%clk 0:01:02]} 33. a3 {[%clk 0:01:54]}  Nf6 {[%clk 0:00:58]} 34. Bf3 {[%clk 0:01:53]}  Nd7 {[%clk 0:00:51]} 35. Be4 {[%clk 0:01:52]}  Nf6 {[%clk 0:00:51]} 36. Bg2 {[%clk 0:01:52]}  Nh5+ {[%clk 0:00:49]} 37. Kg4 {[%clk 0:01:49]}  Nf6+ {[%clk 0:00:50]} 38. Kf4 {[%clk 0:01:45]}  Nh5+ {[%clk 0:00:50]} 39. Kf3 {[%clk 0:01:45]}  Ke5 {[%clk 0:00:45]} 40. c3 {[%clk 0:01:42]}  Nf6 {[%clk 0:00:45]} 41. b4 {[%clk 0:01:40]}  cxb4 {[%clk 0:00:32]} 42. cxb4 {[%clk 0:01:39]}  axb4 {[%clk 0:00:32]} 43. axb4 {[%clk 0:01:40]}  Kd5 {[%clk 0:00:22]} 44. Bf1 {[%clk 0:01:34]}  Kd6 {[%clk 0:00:16]} 45. Bc4 {[%clk 0:01:28]}  e5 {[%clk 0:00:14]} 46. e4 {[%clk 0:01:21]}  Kc6 {[%clk 0:00:14]} 47. Bd3 {[%clk 0:01:19]}  Kb6 {[%clk 0:00:14]} 48. Be2 {[%clk 0:01:17]}  Kc6 {[%clk 0:00:13]} 49. Ke3 {[%clk 0:01:18]}  Kb6 {[%clk 0:00:14]} 50. Bd3 {[%clk 0:01:16]}  Kc6 {[%clk 0:00:14]} 51. Kd2 {[%clk 0:01:16]}  Kb6 {[%clk 0:00:15]} 52. Kc3 {[%clk 0:01:16]}  Kc6 {[%clk 0:00:14]} 53. Kc4 {[%clk 0:01:16]}  Nd7 {[%clk 0:00:11]} 54. b5+ {[%clk 0:01:16]}  Kd6 {[%clk 0:00:11]} 55. Kb4 {[%clk 0:01:15]}  Nb6 {[%clk 0:00:11]} 56. Bc2 {[%clk 0:01:12]}  Nd7 {[%clk 0:00:09]} 57. Bb3 {[%clk 0:01:11]}  Nb6 {[%clk 0:00:09]} 58. Bg8 {[%clk 0:01:07]}  Nd7 {[%clk 0:00:09]} 59. Bd5 {[%clk 0:01:07]}  Nb6 {[%clk 0:00:09]} 60. Bc6 {[%clk 0:01:07]}  Nc8 {[%clk 0:00:08]} 61. Ka5 {[%clk 0:00:58]}  Kc5 {[%clk 0:00:09]} 62. Bd7 {[%clk 0:00:58]}  Nb6 {[%clk 0:00:09]} 63. Be6 {[%clk 0:00:58]}  Na8 {[%clk 0:00:08]} 64. Bg8 {[%clk 0:00:53]}  Nb6 {[%clk 0:00:07]} 65. Bf7 {[%clk 0:00:52]}  Nd7 {[%clk 0:00:07]} 66. Bd5 {[%clk 0:00:44]}  Nb6 {[%clk 0:00:07]} 67. Ka6 {[%clk 0:00:43]}  Na4 {[%clk 0:00:06]} 68. Bc6 {[%clk 0:00:35]}  Nb6 {[%clk 0:00:07]} 69. Kb7 {[%clk 0:00:34]}  Nc4 {[%clk 0:00:06]} 70. Kc7 {[%clk 0:00:34]}  Nb6 {[%clk 0:00:07]} 71. Bd7 {[%clk 0:00:25]}  Nc4 {[%clk 0:00:03]} 72. Be8 {[%clk 0:00:24]}  Nd6 {[%clk 0:00:03]} 73. Bc6 {[%clk 0:00:22]}  Nc4 {[%clk 0:00:02]} 74. Kd7 {[%clk 0:00:22]}  Nd6 {[%clk 0:00:01]} 75. Ke6 {[%clk 0:00:21]} 1-0


[Site "https://www.chess.com"]

[Event "Titled Tuesday Blitz May 4 2021"]
[White "Skatchkov, Pavel"]
[Black "Vivas Zamora, Fabian Ernesto"]
[WhiteFideId "4121848"]
[BlackFideId "3902480"]
[WhiteElo "2476"]
[BlackElo "1966"]
[Result "0-1"]
[Round "02"]
[TimeControl "180+1"]
[Date "2021.05.04"]
[WhiteClock "0:00:31"]
[BlackClock "0:00:06"]

1. d4 {[%clk 0:02:59]}  Nf6 {[%clk 0:02:59]} 2. c4 {[%clk 0:02:59]}  g6 {[%clk 0:02:59]} 3. Nc3 {[%clk 0:02:59]}  d5 {[%clk 0:02:59]} 4. Bg5 {[%clk 0:02:58]}  Bg7 {[%clk 0:02:59]} 5. Nf3 {[%clk 0:02:56]}  Ne4 {[%clk 0:02:59]} 6. Bf4 {[%clk 0:02:56]}  Nxc3 {[%clk 0:02:55]} 7. bxc3 {[%clk 0:02:57]}  c5 {[%clk 0:02:52]} 8. cxd5 {[%clk 0:02:55]}  Qxd5 {[%clk 0:02:50]} 9. e3 {[%clk 0:02:56]}  cxd4 {[%clk 0:02:47]} 10. cxd4 {[%clk 0:02:57]}  Nc6 {[%clk 0:02:35]} 11. Be2 {[%clk 0:02:57]}  Qa5+ {[%clk 0:02:33]} 12. Qd2 {[%clk 0:02:57]}  Qxd2+ {[%clk 0:02:32]} 13. Kxd2 {[%clk 0:02:58]}  O-O {[%clk 0:02:21]} 14. h4 {[%clk 0:02:57]}  Bg4 {[%clk 0:02:14]} 15. Rab1 {[%clk 0:02:54]}  Rfd8 {[%clk 0:01:42]} 16. Rxb7 {[%clk 0:01:43]}  e5 {[%clk 0:01:41]} 17. Bg3 {[%clk 0:01:38]}  exd4 {[%clk 0:01:38]} 18. Bc4 {[%clk 0:01:38]}  dxe3+ {[%clk 0:01:34]} 19. Kxe3 {[%clk 0:01:39]}  Rd7 {[%clk 0:00:46]} 20. Rxd7 {[%clk 0:01:31]}  Bxd7 {[%clk 0:00:40]} 21. Ng5 {[%clk 0:01:31]}  Re8+ {[%clk 0:00:35]} 22. Kf3 {[%clk 0:01:30]}  Nd4+ {[%clk 0:00:29]} 23. Kf4 {[%clk 0:01:30]}  Be5+ {[%clk 0:00:23]} 24. Ke4 {[%clk 0:01:31]}  Bf5+ {[%clk 0:00:05]} 25. Kd5 {[%clk 0:01:31]}  Bxg3 {[%clk 0:00:02]} 26. Kxd4 {[%clk 0:01:31]}  Be5+ {[%clk 0:00:02]} 27. Kc5 {[%clk 0:01:29]}  Re7 {[%clk 0:00:02]} 28. Rb1 {[%clk 0:01:24]}  Kg7 {[%clk 0:00:02]} 29. Rd1 {[%clk 0:01:12]}  h6 {[%clk 0:00:02]} 30. Nf3 {[%clk 0:01:11]}  Bf6 {[%clk 0:00:02]} 31. Bb3 {[%clk 0:01:04]}  Bg4 {[%clk 0:00:02]} 32. Rd3 {[%clk 0:01:04]}  Rc7+ {[%clk 0:00:02]} 33. Kb4 {[%clk 0:01:02]}  Be7+ {[%clk 0:00:01]} 34. Ka5 {[%clk 0:01:01]}  Bxf3 {[%clk 0:00:02]} 35. Rxf3 {[%clk 0:01:02]}  Bxh4 {[%clk 0:00:03]} 36. g3 {[%clk 0:01:02]}  Bf6 {[%clk 0:00:03]} 37. Kb5 {[%clk 0:01:01]}  h5 {[%clk 0:00:03]} 38. Bd5 {[%clk 0:00:58]}  Bd4 {[%clk 0:00:03]} 39. Ka6 {[%clk 0:00:56]}  Rd7 {[%clk 0:00:03]} 40. Bc6 {[%clk 0:00:54]}  Rd6 {[%clk 0:00:02]} 41. Kb7 {[%clk 0:00:54]}  Rf6 {[%clk 0:00:03]} 42. Rxf6 {[%clk 0:00:39]}  Kxf6 {[%clk 0:00:04]} 43. f3 {[%clk 0:00:40]}  Bf2 {[%clk 0:00:03]} 44. Bd7 {[%clk 0:00:37]}  Bxg3 {[%clk 0:00:02]} 45. Kxa7 {[%clk 0:00:37]}  Bf2+ {[%clk 0:00:03]} 46. Kb7 {[%clk 0:00:38]}  Kg5 {[%clk 0:00:03]} 47. Be8 {[%clk 0:00:37]}  f5 {[%clk 0:00:03]} 48. Kc6 {[%clk 0:00:34]}  h4 {[%clk 0:00:04]} 49. Kd6 {[%clk 0:00:33]}  h3 {[%clk 0:00:04]} 50. Bc6 {[%clk 0:00:32]}  Kf4 {[%clk 0:00:05]} 51. Be8 {[%clk 0:00:31]}  h2 {[%clk 0:00:05]} 52. Bxg6 {[%clk 0:00:31]}  h1=Q {[%clk 0:00:06]} 0-1


[Site "https://www.chess.com"]

[Event "Titled Tuesday Blitz May 4 2021"]
[White "Smietanska, Wiktoria"]
[Black "Kaufman, Raymond"]
[WhiteFideId "21869359"]
[BlackFideId "2015056"]
[WhiteElo "1780"]
[BlackElo "2321"]
[Result "0-1"]
[Round "02"]
[TimeControl "180+1"]
[Date "2021.05.04"]
[WhiteClock "0:00:11"]
[BlackClock "0:00:08"]

1. e4 {[%clk 0:03:00]}  c6 {[%clk 0:02:55]} 2. Bc4 {[%clk 0:02:57]}  d5 {[%clk 0:02:55]} 3. Bb3 {[%clk 0:02:55]}  Nf6 {[%clk 0:02:45]} 4. exd5 {[%clk 0:02:54]}  cxd5 {[%clk 0:02:45]} 5. d4 {[%clk 0:02:52]}  Nc6 {[%clk 0:02:45]} 6. c3 {[%clk 0:02:49]}  Bg4 {[%clk 0:02:37]} 7. Nf3 {[%clk 0:02:48]}  e6 {[%clk 0:02:37]} 8. O-O {[%clk 0:02:47]}  Bd6 {[%clk 0:02:34]} 9. h3 {[%clk 0:02:43]}  Bh5 {[%clk 0:02:33]} 10. Bc2 {[%clk 0:02:41]}  Ne4 {[%clk 0:02:20]} 11. Qe2 {[%clk 0:02:37]}  f5 {[%clk 0:02:17]} 12. Nbd2 {[%clk 0:02:30]}  O-O {[%clk 0:02:13]} 13. Qe3 {[%clk 0:02:28]}  Qc7 {[%clk 0:02:05]} 14. Nxe4 {[%clk 0:02:18]}  fxe4 {[%clk 0:02:00]} 15. Nd2 {[%clk 0:02:14]}  Bh2+ {[%clk 0:01:42]} 16. Kh1 {[%clk 0:02:12]}  Bf4 {[%clk 0:01:43]} 17. Qe1 {[%clk 0:02:11]}  Nxd4 {[%clk 0:01:43]} 18. cxd4 {[%clk 0:02:08]}  Qxc2 {[%clk 0:01:42]} 19. Nb3 {[%clk 0:01:56]}  Bd6 {[%clk 0:01:25]} 20. Be3 {[%clk 0:01:49]}  Qxb2 {[%clk 0:01:21]} 21. Qa5 {[%clk 0:01:45]}  b6 {[%clk 0:01:14]} 22. Qb5 {[%clk 0:01:42]}  Be2 {[%clk 0:01:04]} 23. Qc6 {[%clk 0:01:41]}  Bxf1 {[%clk 0:01:04]} 24. Qxd6 {[%clk 0:01:39]}  Bc4 {[%clk 0:01:04]} 25. Qxe6+ {[%clk 0:01:38]}  Kh8 {[%clk 0:01:03]} 26. Rc1 {[%clk 0:01:33]}  Qxa2 {[%clk 0:01:00]} 27. Nd2 {[%clk 0:01:30]}  Rae8 {[%clk 0:00:59]} 28. Qg4 {[%clk 0:01:25]}  b5 {[%clk 0:00:49]} 29. Nxc4 {[%clk 0:01:23]}  bxc4 {[%clk 0:00:48]} 30. Qg5 {[%clk 0:01:22]}  Qa5 {[%clk 0:00:41]} 31. Kh2 {[%clk 0:01:17]}  h6 {[%clk 0:00:41]} 32. Qh5 {[%clk 0:01:16]}  Re6 {[%clk 0:00:34]} 33. Rxc4 {[%clk 0:01:14]}  Qd8 {[%clk 0:00:27]} 34. Ra4 {[%clk 0:01:12]}  Qd6+ {[%clk 0:00:27]} 35. Kh1 {[%clk 0:01:10]}  Rb8 {[%clk 0:00:26]} 36. g3 {[%clk 0:01:05]}  a6 {[%clk 0:00:24]} 37. Ra5 {[%clk 0:01:03]}  Rb1+ {[%clk 0:00:24]} 38. Kg2 {[%clk 0:01:03]}  Rb5 {[%clk 0:00:18]} 39. Ra1 {[%clk 0:01:00]}  Rf6 {[%clk 0:00:16]} 40. Rc1 {[%clk 0:00:57]}  Kh7 {[%clk 0:00:14]} 41. Bf4 {[%clk 0:00:55]}  Qe6 {[%clk 0:00:13]} 42. Rc7 {[%clk 0:00:51]}  Rb2 {[%clk 0:00:11]} 43. Qe5 {[%clk 0:00:37]}  Qxe5 {[%clk 0:00:08]} 44. dxe5 {[%clk 0:00:23]}  Re6 {[%clk 0:00:08]} 45. Rd7 {[%clk 0:00:20]}  Rb5 {[%clk 0:00:07]} 46. Kf1 {[%clk 0:00:18]}  a5 {[%clk 0:00:08]} 47. Ke2 {[%clk 0:00:18]}  Ra6 {[%clk 0:00:06]} 48. Kd2 {[%clk 0:00:15]}  a4 {[%clk 0:00:07]} 49. Rd6 {[%clk 0:00:11]}  Rxd6 {[%clk 0:00:06]} 50. exd6 {[%clk 0:00:12]}  Rb7 {[%clk 0:00:07]} 51. Kc2 {[%clk 0:00:11]}  a3 {[%clk 0:00:07]} 52. d7 {[%clk 0:00:11]}  Rxd7 {[%clk 0:00:06]} 53. Kb3 {[%clk 0:00:11]}  Ra7 {[%clk 0:00:07]} 54. Ka2 {[%clk 0:00:11]}  Ra8 {[%clk 0:00:08]} 0-1


[Site "https://www.chess.com"]

[Event "Titled Tuesday Blitz May 4 2021"]
[White "Smith, Tom"]
[Black "Krysa, Leandro"]
[WhiteFideId "421820"]
[BlackFideId "116807"]
[WhiteElo "2332"]
[BlackElo "2490"]
[Result "0-1"]
[Round "02"]
[TimeControl "180+1"]
[Date "2021.05.04"]
[WhiteClock "0:00:01"]
[BlackClock "0:00:09"]

1. d4 {[%clk 0:03:00]}  Nf6 {[%clk 0:02:59]} 2. Nc3 {[%clk 0:02:59]}  d5 {[%clk 0:02:58]} 3. Bf4 {[%clk 0:02:59]}  g6 {[%clk 0:02:56]} 4. e3 {[%clk 0:02:58]}  Bg7 {[%clk 0:02:55]} 5. h4 {[%clk 0:02:59]}  h5 {[%clk 0:02:54]} 6. Nf3 {[%clk 0:02:58]}  Bg4 {[%clk 0:02:54]} 7. Qd2 {[%clk 0:02:58]}  Bxf3 {[%clk 0:02:53]} 8. gxf3 {[%clk 0:02:58]}  O-O {[%clk 0:02:53]} 9. Bd3 {[%clk 0:02:57]}  c5 {[%clk 0:02:53]} 10. dxc5 {[%clk 0:02:50]}  Nc6 {[%clk 0:02:48]} 11. a3 {[%clk 0:02:46]}  Qa5 {[%clk 0:02:42]} 12. Nb5 {[%clk 0:02:35]}  Qxd2+ {[%clk 0:02:37]} 13. Kxd2 {[%clk 0:02:36]}  Nd7 {[%clk 0:02:36]} 14. Nc7 {[%clk 0:02:29]}  Rad8 {[%clk 0:02:34]} 15. b4 {[%clk 0:02:06]}  Bxa1 {[%clk 0:02:26]} 16. Rxa1 {[%clk 0:02:07]}  Kg7 {[%clk 0:02:05]} 17. Rg1 {[%clk 0:01:59]}  a6 {[%clk 0:01:40]} 18. Ke2 {[%clk 0:01:32]}  Nde5 {[%clk 0:01:27]} 19. Bh2 {[%clk 0:01:09]}  Rd7 {[%clk 0:01:19]} 20. b5 {[%clk 0:00:56]}  axb5 {[%clk 0:01:08]} 21. Nxb5 {[%clk 0:00:57]}  Ra8 {[%clk 0:01:00]} 22. Rb1 {[%clk 0:00:48]}  e6 {[%clk 0:00:43]} 23. Rb3 {[%clk 0:00:47]}  Ra5 {[%clk 0:00:31]} 24. Bf4 {[%clk 0:00:36]}  Nc4 {[%clk 0:00:18]} 25. e4 {[%clk 0:00:20]}  N4e5 {[%clk 0:00:13]} 26. exd5 {[%clk 0:00:14]}  exd5 {[%clk 0:00:14]} 27. Bd2 {[%clk 0:00:11]}  Nxd3 {[%clk 0:00:10]} 28. cxd3 {[%clk 0:00:10]}  Rxb5 {[%clk 0:00:10]} 29. Rxb5 {[%clk 0:00:10]}  Nd4+ {[%clk 0:00:10]} 30. Ke3 {[%clk 0:00:08]}  Nxb5 {[%clk 0:00:11]} 31. d4 {[%clk 0:00:08]}  Na7 {[%clk 0:00:09]} 32. c6 {[%clk 0:00:01]}  Nxc6 {[%clk 0:00:09]} 0-1


[Site "https://www.chess.com"]

[Event "Titled Tuesday Blitz May 4 2021"]
[White "Song, Michael"]
[Black "Saraci, Nderim"]
[WhiteFideId "2613190"]
[BlackFideId "6351921"]
[WhiteElo "2274"]
[BlackElo "2486"]
[Result "0-1"]
[Round "02"]
[TimeControl "180+1"]
[Date "2021.05.04"]
[WhiteClock "0:00:03"]
[BlackClock "0:00:09"]

1. d4 {[%clk 0:03:00]}  Nf6 {[%clk 0:02:58]} 2. c4 {[%clk 0:03:00]}  e6 {[%clk 0:02:59]} 3. Nc3 {[%clk 0:03:00]}  d5 {[%clk 0:02:59]} 4. cxd5 {[%clk 0:02:59]}  exd5 {[%clk 0:03:00]} 5. Bg5 {[%clk 0:02:59]}  c6 {[%clk 0:03:00]} 6. e3 {[%clk 0:02:59]}  Bd6 {[%clk 0:02:59]} 7. Bd3 {[%clk 0:02:55]}  Be6 {[%clk 0:02:59]} 8. Nge2 {[%clk 0:02:53]}  Nbd7 {[%clk 0:03:00]} 9. Nf4 {[%clk 0:02:53]}  O-O {[%clk 0:03:00]} 10. Qc2 {[%clk 0:02:43]}  h6 {[%clk 0:02:59]} 11. Nxe6 {[%clk 0:02:42]}  fxe6 {[%clk 0:02:59]} 12. Bh4 {[%clk 0:02:42]}  e5 {[%clk 0:02:59]} 13. dxe5 {[%clk 0:02:36]}  Nxe5 {[%clk 0:02:57]} 14. Be2 {[%clk 0:02:34]}  Qe8 {[%clk 0:02:54]} 15. Bg3 {[%clk 0:02:30]}  Qe7 {[%clk 0:02:52]} 16. Rd1 {[%clk 0:02:21]}  Rae8 {[%clk 0:02:52]} 17. O-O {[%clk 0:02:15]}  Neg4 {[%clk 0:02:51]} 18. Qg6 {[%clk 0:02:01]}  Bxg3 {[%clk 0:02:27]} 19. hxg3 {[%clk 0:01:42]}  Ne5 {[%clk 0:02:00]} 20. Qc2 {[%clk 0:01:36]}  Nfg4 {[%clk 0:01:59]} 21. Rd4 {[%clk 0:01:22]}  Qg5 {[%clk 0:01:42]} 22. Bxg4 {[%clk 0:01:12]}  Nxg4 {[%clk 0:01:41]} 23. Qe2 {[%clk 0:00:57]}  Nf6 {[%clk 0:00:58]} 24. Rf4 {[%clk 0:00:36]}  Nh5 {[%clk 0:00:48]} 25. Rxf8+ {[%clk 0:00:34]}  Rxf8 {[%clk 0:00:49]} 26. Rd1 {[%clk 0:00:25]}  Nf6 {[%clk 0:00:46]} 27. Rd4 {[%clk 0:00:24]}  Re8 {[%clk 0:00:46]} 28. Qf3 {[%clk 0:00:22]}  Qg6 {[%clk 0:00:45]} 29. Rd2 {[%clk 0:00:17]}  Rf8 {[%clk 0:00:44]} 30. Qe2 {[%clk 0:00:12]}  Ng4 {[%clk 0:00:42]} 31. f3 {[%clk 0:00:12]}  Ne5 {[%clk 0:00:40]} 32. e4 {[%clk 0:00:12]}  Qxg3 {[%clk 0:00:38]} 33. Kh1 {[%clk 0:00:07]}  Qh4+ {[%clk 0:00:19]} 34. Kg1 {[%clk 0:00:07]}  Qg5 {[%clk 0:00:19]} 35. Kf2 {[%clk 0:00:04]}  Ng4+ {[%clk 0:00:19]} 36. Ke1 {[%clk 0:00:04]}  Qh4+ {[%clk 0:00:16]} 37. Kd1 {[%clk 0:00:04]}  Nf6 {[%clk 0:00:16]} 38. exd5 {[%clk 0:00:04]}  cxd5 {[%clk 0:00:16]} 39. Nxd5 {[%clk 0:00:04]}  Nxd5 {[%clk 0:00:13]} 40. Qe6+ {[%clk 0:00:04]}  Kh8 {[%clk 0:00:12]} 41. Qxd5 {[%clk 0:00:05]}  b6 {[%clk 0:00:09]} 42. Kc2 {[%clk 0:00:05]}  Re8 {[%clk 0:00:10]} 43. a3 {[%clk 0:00:05]}  Rc8+ {[%clk 0:00:10]} 44. Kb3 {[%clk 0:00:05]}  a5 {[%clk 0:00:09]} 45. Rc2 {[%clk 0:00:06]}  a4+ {[%clk 0:00:08]} 46. Ka2 {[%clk 0:00:03]}  Rxc2 {[%clk 0:00:09]} 47. Qd8+ {[%clk 0:00:03]}  Qxd8 {[%clk 0:00:09]} 0-1


[Site "https://www.chess.com"]

[Event "Titled Tuesday Blitz May 4 2021"]
[White "Spata, German"]
[Black "Kavinda, Akila"]
[WhiteFideId "113026"]
[BlackFideId "9901302"]
[WhiteElo "2238"]
[BlackElo "2043"]
[Result "0-1"]
[Round "02"]
[TimeControl "180+1"]
[Date "2021.05.04"]
[WhiteClock "0:00:04"]
[BlackClock "0:00:12"]

1. d4 {[%clk 0:03:00]}  Nf6 {[%clk 0:02:59]} 2. Bf4 {[%clk 0:03:01]}  e6 {[%clk 0:02:58]} 3. e3 {[%clk 0:03:02]}  d5 {[%clk 0:02:59]} 4. Nf3 {[%clk 0:03:02]}  Bd6 {[%clk 0:02:59]} 5. Bg3 {[%clk 0:03:02]}  O-O {[%clk 0:02:59]} 6. Ne5 {[%clk 0:03:01]}  c5 {[%clk 0:02:57]} 7. c3 {[%clk 0:03:01]}  Nc6 {[%clk 0:02:56]} 8. Bd3 {[%clk 0:03:00]}  Qc7 {[%clk 0:02:52]} 9. f4 {[%clk 0:02:59]}  cxd4 {[%clk 0:02:47]} 10. exd4 {[%clk 0:02:58]}  g6 {[%clk 0:02:47]} 11. Nd2 {[%clk 0:02:56]}  Nh5 {[%clk 0:02:47]} 12. O-O {[%clk 0:02:49]}  f6 {[%clk 0:02:46]} 13. Nxc6 {[%clk 0:02:47]}  bxc6 {[%clk 0:02:45]} 14. Qf3 {[%clk 0:02:14]}  Rb8 {[%clk 0:02:44]} 15. b4 {[%clk 0:02:13]}  Bd7 {[%clk 0:02:36]} 16. Nb3 {[%clk 0:02:13]}  e5 {[%clk 0:02:21]} 17. fxe5 {[%clk 0:02:00]}  fxe5 {[%clk 0:02:21]} 18. Qe2 {[%clk 0:01:51]}  Nxg3 {[%clk 0:02:19]} 19. hxg3 {[%clk 0:01:50]}  e4 {[%clk 0:02:19]} 20. Bc2 {[%clk 0:01:44]}  Bxg3 {[%clk 0:02:17]} 21. Nc5 {[%clk 0:01:42]}  Bh2+ {[%clk 0:01:57]} 22. Kh1 {[%clk 0:01:42]}  Bd6 {[%clk 0:01:56]} 23. Rxf8+ {[%clk 0:01:32]}  Rxf8 {[%clk 0:01:55]} 24. Rf1 {[%clk 0:01:32]}  Rxf1+ {[%clk 0:01:45]} 25. Qxf1 {[%clk 0:01:32]}  Qd8 {[%clk 0:01:34]} 26. g3 {[%clk 0:01:21]}  Bxc5 {[%clk 0:01:13]} 27. bxc5 {[%clk 0:01:16]}  Qg5 {[%clk 0:01:13]} 28. Qf4 {[%clk 0:01:03]}  Qh5+ {[%clk 0:00:51]} 29. Kg1 {[%clk 0:01:00]}  Qe2 {[%clk 0:00:48]} 30. Qb8+ {[%clk 0:00:54]}  Kf7 {[%clk 0:00:47]} 31. Qxa7 {[%clk 0:00:54]}  Ke7 {[%clk 0:00:35]} 32. Ba4 {[%clk 0:00:34]}  Qe3+ {[%clk 0:00:24]} 33. Kf1 {[%clk 0:00:34]}  Qf3+ {[%clk 0:00:23]} 34. Ke1 {[%clk 0:00:34]}  Qxc3+ {[%clk 0:00:21]} 35. Kd1 {[%clk 0:00:32]}  Qxd4+ {[%clk 0:00:21]} 36. Kc1 {[%clk 0:00:33]}  Qc3+ {[%clk 0:00:20]} 37. Kb1 {[%clk 0:00:33]}  Qe1+ {[%clk 0:00:15]} 38. Kb2 {[%clk 0:00:33]}  Qf2+ {[%clk 0:00:15]} 39. Kb1 {[%clk 0:00:33]}  Qf6 {[%clk 0:00:15]} 40. Qb8 {[%clk 0:00:16]}  e3 {[%clk 0:00:13]} 41. Bd1 {[%clk 0:00:12]}  Bf5+ {[%clk 0:00:10]} 42. Bc2 {[%clk 0:00:07]}  Bxc2+ {[%clk 0:00:09]} 43. Kxc2 {[%clk 0:00:08]}  Qf5+ {[%clk 0:00:10]} 44. Kb3 {[%clk 0:00:07]}  Qe4 {[%clk 0:00:09]} 45. Qd6+ {[%clk 0:00:06]}  Kf7 {[%clk 0:00:10]} 46. Qd7+ {[%clk 0:00:06]}  Kf6 {[%clk 0:00:10]} 47. Qxc6+ {[%clk 0:00:04]}  Kg5 {[%clk 0:00:11]} 48. Qd6 {[%clk 0:00:02]}  e2 {[%clk 0:00:11]} 49. Qd8+ {[%clk 0:00:02]}  Kg4 {[%clk 0:00:11]} 50. Qd7+ {[%clk 0:00:03]}  Kf3 {[%clk 0:00:12]} 51. Qd6 {[%clk 0:00:04]}  e1=Q {[%clk 0:00:12]} 0-1


[Site "https://www.chess.com"]

[Event "Titled Tuesday Blitz May 4 2021"]
[White "Srihari L R"]
[Black "Dimic, Pavle"]
[WhiteFideId "46617116"]
[BlackFideId "937428"]
[WhiteElo "2121"]
[BlackElo "2216"]
[Result "1-0"]
[Round "02"]
[TimeControl "180+1"]
[Date "2021.05.04"]
[WhiteClock "0:00:11"]
[BlackClock "0:00:19"]

1. d4 {[%clk 0:03:00]}  Nf6 {[%clk 0:02:58]} 2. Bg5 {[%clk 0:03:00]}  Ne4 {[%clk 0:02:58]} 3. Bf4 {[%clk 0:03:00]}  c5 {[%clk 0:02:58]} 4. f3 {[%clk 0:03:00]}  Qa5+ {[%clk 0:02:56]} 5. c3 {[%clk 0:03:00]}  Nf6 {[%clk 0:02:57]} 6. dxc5 {[%clk 0:02:31]}  Qxc5 {[%clk 0:02:37]} 7. e4 {[%clk 0:02:28]}  d5 {[%clk 0:02:14]} 8. e5 {[%clk 0:02:21]}  Nfd7 {[%clk 0:02:14]} 9. Nd2 {[%clk 0:02:17]}  e6 {[%clk 0:02:13]} 10. Nb3 {[%clk 0:02:16]}  Qc7 {[%clk 0:02:09]} 11. Bg3 {[%clk 0:02:04]}  Nc6 {[%clk 0:02:08]} 12. f4 {[%clk 0:02:03]}  f6 {[%clk 0:01:57]} 13. exf6 {[%clk 0:02:02]}  Nxf6 {[%clk 0:01:55]} 14. Bd3 {[%clk 0:02:01]}  Bd6 {[%clk 0:01:55]} 15. Ne2 {[%clk 0:02:00]}  Bd7 {[%clk 0:01:52]} 16. O-O {[%clk 0:01:55]}  O-O {[%clk 0:01:51]} 17. Kh1 {[%clk 0:01:48]}  Rae8 {[%clk 0:01:45]} 18. Nbd4 {[%clk 0:01:47]}  a6 {[%clk 0:01:45]} 19. Nxc6 {[%clk 0:01:42]}  Bxc6 {[%clk 0:01:40]} 20. Nd4 {[%clk 0:01:43]}  Bd7 {[%clk 0:01:21]} 21. Qc2 {[%clk 0:01:24]}  Kh8 {[%clk 0:01:14]} 22. Rae1 {[%clk 0:01:23]}  Bc8 {[%clk 0:00:45]} 23. Qd1 {[%clk 0:01:17]}  g6 {[%clk 0:00:44]} 24. Bh4 {[%clk 0:00:28]}  Bxf4 {[%clk 0:00:36]} 25. g3 {[%clk 0:00:18]}  g5 {[%clk 0:00:24]} 26. gxf4 {[%clk 0:00:18]}  gxh4 {[%clk 0:00:24]} 27. Re5 {[%clk 0:00:18]}  Rg8 {[%clk 0:00:20]} 28. Qe1 {[%clk 0:00:18]}  Ng4 {[%clk 0:00:20]} 29. Rh5 {[%clk 0:00:17]}  Ref8 {[%clk 0:00:19]} 30. Rxh7+ {[%clk 0:00:16]}  Qxh7 {[%clk 0:00:19]} 31. Bxh7 {[%clk 0:00:17]}  Kxh7 {[%clk 0:00:20]} 32. Qxh4+ {[%clk 0:00:17]}  Nh6 {[%clk 0:00:21]} 33. Nf3 {[%clk 0:00:15]}  Rg4 {[%clk 0:00:19]} 34. Qe7+ {[%clk 0:00:13]}  Rf7 {[%clk 0:00:19]} 35. Ng5+ {[%clk 0:00:12]}  Kg6 {[%clk 0:00:18]} 36. Nxf7 {[%clk 0:00:12]}  Nxf7 {[%clk 0:00:19]} 37. Qe8 {[%clk 0:00:11]} 1-0


[Site "https://www.chess.com"]